fUST/lending_fUST_20240612
["ID","MTS","AMOUNT","RATE_DAILY","PERIOD"]
[329135741,1718129456164,-151.0,0.00020226,2]
[329135742,1718129456175,-151.0,0.00020226,2]
[329135743,1718129456185,-1480.11549,0.00020226,2]
[329135744,1718129456195,-1480.11549,0.00020226,2]
[329135745,1718129456206,-201.388634,0.00020226,2]
[329135746,1718129456216,-169.423373,0.00020226,2]
[329135747,1718129456227,-389.020147,0.00020226,2]
[329135748,1718129456238,-389.020147,0.00020226,2]
[329135749,1718129456249,-151.0,0.00020226,2]
[329135750,1718129456260,-1283.324459,0.00020226,2]
[329135751,1718129456272,-1283.324459,0.00020226,2]
[329135752,1718129456284,-151.0,0.00020226,2]
[329135753,1718129456294,-151.0,0.00020226,2]
[329135754,1718129456306,-151.0,0.00020226,2]
[329135755,1718129456398,-151.0,0.00020226,2]
[329135756,1718129456408,-151.0,0.00020235,2]
[329135757,1718129456421,-1864.825539,0.00020235,2]
[329135758,1718129456432,-1864.825539,0.00020235,2]
[329135759,1718129456442,-500.0,0.00020272,2]
[329135760,1718129456452,-500.0,0.00020272,2]
[329135761,1718129456463,-5701.48596226,0.00020273,13]
[329135762,1718129456474,-500.0,0.00020273,2]
[329135763,1718129456485,-380.87762235,0.00020273,2]
[329135764,1718129456497,-500.0,0.00020273,4]
[329135765,1718129456507,-500.0,0.00020273,2]
[329135766,1718129456518,-517.84,0.00020273,2]
[329135767,1718129456530,-500.0,0.00020273,2]
[329135768,1718129456540,-451.65419452,0.00020273,2]
[329135769,1718129456550,-500.0,0.00020273,2]
[329135770,1718129456562,-500.0,0.00020273,2]
[329135771,1718129456573,-500.0,0.00020273,2]
[329135772,1718129456585,-1061.162945,0.00020273,2]
[329135773,1718129456596,-1061.162945,0.00020273,2]
[329135774,1718129456606,-500.0,0.00020273,2]
[329135775,1718129456618,-644.85601348,0.00020273,2]
[329135776,1718129456628,-171.23,0.00020273,2]
[329135777,1718129456638,-500.0,0.00020273,2]
[329135778,1718129456649,-161.71390829,0.00020273,2]
[329135779,1718129456659,-500.0,0.00020273,2]
[329135780,1718129456672,-500.0,0.00020273,2]
[329135781,1718129456684,-504.88,0.00020273,2]
[329135782,1718129456695,-453.63,0.00020273,2]
[329135783,1718129456706,-3312.86,0.00020273,2]
[329135784,1718129456716,-500.0,0.00020273,2]
[329135785,1718129456727,-500.0,0.00020273,2]
[329135786,1718129456737,-500.0,0.00020273,2]
[329135787,1718129456750,-729.32,0.00020273,2]
[329135788,1718129456761,-918.45,0.00020273,2]
[329135789,1718129456772,-500.0,0.00020273,2]
[329135790,1718129456782,-502.42424379,0.00020273,2]
[329135791,1718129456794,-500.0,0.00020273,2]
[329135792,1718129456805,-500.0,0.00020273,2]
[329135793,1718129456817,-500.0,0.00020273,2]
[329135794,1718129456828,-1880.78,0.00020273,2]
[329135795,1718129456839,-541.91,0.00020273,2]
[329135796,1718129456852,-500.0,0.00020273,2]
[329135797,1718129456863,-2224.7,0.00020273,2]
[329135798,1718129456873,-1365.05,0.00020273,2]
[329135799,1718129456884,-500.0,0.00020273,2]
[329135800,1718129456895,-890.22,0.00020273,2]
[329135801,1718129456905,-500.0,0.00020273,2]
[329135802,1718129456916,-500.0,0.00020273,2]
[329135803,1718129456927,-725.79,0.00020273,2]
[329135804,1718129456939,-524.18,0.00020273,2]
[329135805,1718129456949,-500.0,0.00020273,2]
[329135806,1718129456960,-500.0,0.00020273,2]
[329135807,1718129456970,-500.0,0.00020273,2]
[329135808,1718129456980,-500.0,0.00020273,2]
[329135809,1718129456991,-9472.91,0.00020273,2]
[329135810,1718129457002,-500.0,0.00020273,2]
[329135811,1718129457027,-500.0,0.00020273,2]
[329135812,1718129457037,-3585.01,0.00020273,2]
[329135813,1718129457047,-500.0,0.00020273,2]
[329135814,1718129457057,-1319.05,0.00020273,2]
[329135815,1718129457068,-500.0,0.00020273,2]
[329135816,1718129457078,-500.0,0.00020273,2]
[329135817,1718129457088,-2417.93,0.00020273,2]
[329135818,1718129457099,-2129.49,0.00020273,2]
[329135819,1718129457109,-312.83569076,0.00020273,2]
[329135820,1718129457119,-500.0,0.00020273,2]
[329135821,1718129457129,-6561.42,0.00020273,2]
[329135822,1718129457139,-500.0,0.00020273,2]
[329135823,1718129457149,-500.0,0.00020273,2]
[329135824,1718129457160,-529.9,0.00020273,2]
[329135825,1718129457171,-500.0,0.00020273,2]
[329135826,1718129457181,-500.0,0.00020273,2]
[329135827,1718129457191,-743.936743,0.00020273,2]
[329135828,1718129457202,-500.0,0.00020273,2]
[329135829,1718129457212,-743.936743,0.00020273,2]
[329135830,1718129457222,-394.82274104,0.00020273,2]
[329135831,1718129457232,-500.0,0.00020273,2]
[329135832,1718129457243,-151.0,0.00020273,2]
[329135833,1718129457253,-3371.3,0.00020273,2]
[329135834,1718129457263,-500.0,0.00020273,2]
[329135835,1718129457273,-500.0,0.00020273,2]
[329135836,1718129457284,-151.0,0.00020273,2]
[329135837,1718129457294,-151.0,0.00020273,2]
[329135838,1718129457304,-151.0,0.00020273,2]
[329135839,1718129457314,-1068.316572,0.00020273,2]
[329135840,1718129457326,-151.0,0.00020273,2]
[329135841,1718129457337,-500.0,0.00020273,2]
[329135842,1718129457347,-1068.316572,0.00020273,2]
[329135843,1718129457356,-500.0,0.00020273,2]
[329135844,1718129457366,-500.0,0.00020273,2]
[329135845,1718129457376,-806.16,0.00020273,2]
[329135846,1718129457386,-1241.29,0.00020273,2]
[329135847,1718129457396,-500.0,0.00020273,2]
[329135848,1718129457407,-676.178389,0.00020273,2]
[329135849,1718129457417,-168.02281681,0.00020273,2]
[329135850,1718129457427,-151.0,0.00020546,2]
[329135851,1718129457437,-500.0,0.00020546,2]
[329135852,1718129457448,-201.93260421,0.00020546,2]
[329135853,1718129457458,-1283.324459,0.00020546,2]
[329135854,1718129457468,-1283.324459,0.00020546,2]
[329135855,1718129457479,-151.0,0.00020546,2]
[329135856,1718129457489,-151.0,0.00020546,2]
[329135857,1718129457499,-151.0,0.00020546,2]
[329135858,1718129457509,-231.897679,0.00020546,2]
[329135859,1718129457519,-151.0,0.00020547,2]
[329135860,1718129457529,-500.0,0.00020547,2]
[329135861,1718129457539,-151.0,0.00020547,2]
[329135862,1718129457549,-151.0,0.00020547,2]
[329135863,1718129457560,-151.0,0.00020547,2]
[329135864,1718129457571,-500.0,0.00020547,4]
[329135865,1718129457581,-183.79691278,0.00020547,2]
[329135866,1718129457591,-517.84,0.00020547,2]
[329135867,1718129457601,-500.0,0.00020547,2]
[329135868,1718129457612,-151.0,0.00020547,2]
[329135869,1718129457622,-500.0,0.00020547,2]
[329135870,1718129457633,-500.0,0.00020547,2]
[329135871,1718129457643,-151.0,0.00020547,2]
[329135872,1718129457653,-372.908702,0.00020547,2]
[329135873,1718129457663,-151.0,0.00020547,2]
[329135874,1718129457673,-500.0,0.00020547,2]
[329135875,1718129457684,-372.908702,0.00020547,2]
[329135876,1718129457695,-500.0,0.00020547,2]
[329135877,1718129457705,-500.0,0.00020547,2]
[329135878,1718129457715,-500.0,0.00020547,2]
[329135879,1718129457726,-500.0,0.00020547,2]
[329135880,1718129457736,-151.0,0.00020547,2]
[329135881,1718129457747,-504.88,0.00020547,2]
[329135882,1718129457757,-453.63,0.00020547,2]
[329135883,1718129457768,-3312.86,0.00020547,2]
[329135884,1718129457778,-151.0,0.00020547,2]
[329135885,1718129457788,-226.25284402,0.00020547,2]
[329135886,1718129457798,-500.0,0.00020547,2]
[329135887,1718129457807,-500.0,0.00020547,2]
[329135888,1718129457817,-729.32,0.00020547,2]
[329135889,1718129457827,-918.45,0.00020547,2]
[329135890,1718129457837,-500.0,0.00020547,2]
[329135891,1718129457847,-500.0,0.00020547,2]
[329135892,1718129457858,-151.0,0.00020547,2]
[329135893,1718129457868,-500.0,0.00020547,2]
[329135894,1718129457879,-500.0,0.00020547,2]
[329135895,1718129457889,-1880.78,0.00020547,2]
[329135896,1718129457899,-827.454646,0.00020547,2]
[329135897,1718129457910,-827.454646,0.00020547,2]
[329135898,1718129457920,-541.91,0.00020547,2]
[329135899,1718129457930,-519.01450905,0.00020547,2]
[329135900,1718129457941,-2224.7,0.00020547,2]
[329135901,1718129457952,-259.201572,0.00020547,2]
[329135902,1718129457962,-1365.05,0.00020547,2]
[329135903,1718129457973,-259.201572,0.00020547,2]
[329135904,1718129457983,-151.0,0.00020547,2]
[329135905,1718129457992,-890.22,0.00020547,2]
[329135906,1718129458003,-151.0,0.00020547,2]
[329135907,1718129458019,-500.0,0.00020547,2]
[329135908,1718129458037,-500.0,0.00020547,2]
[329135909,1718129458048,-1480.11549,0.00020547,2]
[329135910,1718129458058,-725.79,0.00020547,2]
[329135911,1718129458069,-524.18,0.00020547,2]
[329135912,1718129458082,-1480.11549,0.00020547,2]
[329135913,1718129458092,-500.0,0.00020547,2]
[329135914,1718129458102,-500.0,0.00020547,2]
[329135915,1718129458113,-389.020147,0.00020547,2]
[329135916,1718129458125,-389.020147,0.00020547,2]
[329135917,1718129458135,-500.0,0.00020547,2]
[329135918,1718129458145,-9472.91,0.00020547,2]
[329135919,1718129458163,-500.0,0.00020547,2]
[329135920,1718129458173,-500.0,0.00020547,2]
[329135921,1718129458183,-3585.01,0.00020547,2]
[329135922,1718129458268,-500.0,0.00020547,2]
[329135923,1718129458278,-1319.05,0.00020547,2]
[329135924,1718129458288,-405.07163042,0.00020547,2]
[329135925,1718129458298,-341.38349924,0.00020547,2]
[329135926,1718129458324,-158.61650076,0.00020547,2]
[329135927,1718129458335,-2417.93,0.00020547,2]
[329135928,1718129458345,-1283.99357407,0.00020547,2]
[329135929,1718129458358,-845.49642593,0.00020547,2]
[329135930,1718129458368,-500.0,0.00020547,2]
[329135931,1718129458378,-6561.42,0.00020547,2]
[329135932,1718129458388,-500.0,0.00020547,2]
[329135933,1718129458398,-529.9,0.00020547,2]
[329135934,1718129458409,-500.0,0.00020547,2]
[329135935,1718129458419,-500.0,0.00020547,2]
[329135936,1718129458429,-500.0,0.00020547,2]
[329135937,1718129458439,-500.0,0.00020547,2]
[329135938,1718129458449,-3371.3,0.00020547,2]
[329135939,1718129458459,-453.21755257,0.00020547,2]
[329135940,1718129458472,-46.78244743,0.00020547,2]
[329135941,1718129458482,-500.0,0.00020547,2]
[329135942,1718129458492,-500.0,0.00020547,2]
[329135943,1718129458502,-500.0,0.00020547,2]
[329135944,1718129458512,-806.16,0.00020547,2]
[329135945,1718129458522,-1241.29,0.00020547,2]
[329135946,1718129458532,-500.0,0.00020547,2]
[329135947,1718129458542,-410.693604,0.00020548,2]
[329135948,1718129458553,-410.693604,0.00020548,2]
[329135949,1718129458563,-410.693604,0.00020548,2]
[329135950,1718129458576,-410.693604,0.00020548,2]
[329135951,1718129458586,-320.0,0.00020699,2]
[329135952,1718129458596,-500.0,0.00020821,2]
[329135953,1718129458606,-500.0,0.00020821,4]
[329135954,1718129458616,-517.84,0.00020821,2]
[329135955,1718129458626,-500.0,0.00020821,2]
[329135956,1718129458637,-500.0,0.00020821,2]
[329135957,1718129458648,-500.0,0.00020821,2]
[329135958,1718129458658,-500.0,0.00020821,2]
[329135959,1718129458671,-500.0,0.00020821,2]
[329135960,1718129458682,-500.0,0.00020821,2]
[329135961,1718129458693,-500.0,0.00020821,2]
[329135962,1718129458704,-500.0,0.00020821,2]
[329135963,1718129458714,-504.88,0.00020821,2]
[329135964,1718129458725,-453.63,0.00020821,2]
[329135965,1718129458735,-3312.86,0.00020821,2]
[329135966,1718129458746,-610.94275831,0.00020821,2]
[329135967,1718129458756,-500.0,0.00020821,2]
[329135968,1718129458766,-729.32,0.00020821,2]
[329135969,1718129458776,-918.45,0.00020821,2]
[329135970,1718129458786,-151.0,0.00020821,2]
[329135971,1718129458797,-1864.825539,0.00020821,2]
[329135972,1718129458807,-1864.825539,0.00020821,2]
[329135973,1718129458817,-500.0,0.00020821,2]
[329135974,1718129458827,-506.77442958,0.00020821,2]
[329135975,1718129458837,-1880.78,0.00020821,2]
[329135976,1718129458848,-541.91,0.00020821,2]
[329135977,1718129458858,-2224.7,0.00020821,2]
[329135978,1718129458868,-1365.05,0.00020821,2]
[329135979,1718129458878,-890.22,0.00020821,2]
[329135980,1718129458889,-500.0,0.00020821,2]
[329135981,1718129458899,-500.0,0.00020821,2]
[329135982,1718129458909,-725.79,0.00020821,2]
[329135983,1718129458920,-524.18,0.00020821,2]
[329135984,1718129458930,-500.0,0.00020821,2]
[329135985,1718129458941,-500.0,0.00020821,2]
[329135986,1718129458951,-500.0,0.00020821,2]
[329135987,1718129458961,-9472.91,0.00020821,2]
[329135988,1718129458972,-500.0,0.00020821,2]
[329135989,1718129458982,-500.0,0.00020821,2]
[329135990,1718129458992,-3585.01,0.00020821,2]
[329135991,1718129459003,-1319.05,0.00020821,2]
[329135992,1718129459015,-500.0,0.00020821,2]
[329135993,1718129459031,-2043.53612384,0.00020821,2]
[329135994,1718129459045,-374.39387616,0.00020821,2]
[329135995,1718129459055,-2129.49,0.00020821,2]
[329135996,1718129459066,-500.0,0.00020821,2]
[329135997,1718129459076,-6561.42,0.00020821,2]
[329135998,1718129459087,-500.0,0.00020821,2]
[329135999,1718129459097,-529.9,0.00020821,2]
[329136000,1718129459106,-500.0,0.00020821,2]
[329136001,1718129459116,-500.0,0.00020821,2]
[329136002,1718129459126,-68.52005603,0.00020821,2]
[329136003,1718129459481,-500.0,0.00019178,2]
[329136004,1718129459492,-675.41668697,0.00020821,2]
[329136005,1718129459501,-500.0,0.00020821,2]
[329136006,1718129459511,-743.936743,0.00020821,2]
[329136007,1718129459521,-336.81600056,0.00020821,2]
[329136008,1718129459531,-151.0,0.00020821,2]
[329136009,1718129459541,-3371.3,0.00020821,2]
[329136010,1718129459552,-500.0,0.00020821,2]
[329136011,1718129459562,-151.0,0.00020821,2]
[329136012,1718129459573,-151.0,0.00020821,2]
[329136013,1718129459584,-151.0,0.00020821,2]
[329136014,1718129459594,-1068.316572,0.00020821,2]
[329136015,1718129459606,-151.0,0.00020821,2]
[329136016,1718129459617,-1068.316572,0.00020821,2]
[329136017,1718129459627,-500.0,0.00020821,2]
[329136018,1718129459637,-500.0,0.00020821,2]
[329136019,1718129459647,-806.16,0.00020821,2]
[329136020,1718129459657,-1241.29,0.00020821,2]
[329136021,1718129459667,-500.0,0.00020821,2]
[329136022,1718129459677,-676.178389,0.00020821,2]
[329136023,1718129459687,-7269.5959632,0.00021,2]
[329136024,1718129459698,-394.12424459,0.00021,2]
[329136025,1718129459708,-1000.0,0.00021,9]
[329136026,1718129459718,-471.19093909,0.00021,2]
[329136027,1718129459728,-151.0,0.00021,2]
[329136028,1718129459738,-1283.324459,0.00021,2]
[329136029,1718129459749,-1283.324459,0.00021,2]
[329136030,1718129459759,-151.0,0.00021,2]
[329136031,1718129459769,-151.0,0.00021,2]
[329136032,1718129459779,-151.0,0.00021,2]
[329136033,1718129459789,-908.1,0.00021076,2]
[329136034,1718129459799,-151.0,0.00021095,2]
[329136035,1718129459809,-151.0,0.00021095,2]
[329136036,1718129459820,-500.0,0.00021095,2]
[329136037,1718129459830,-151.0,0.00021095,2]
[329136038,1718129459916,-151.0,0.00021095,2]
[329136039,1718129459927,-171.407289,0.00021095,2]
[329136040,1718129459938,-394.85,0.00021095,4]
[329136041,1718129459949,-517.84,0.00021095,2]
[329136042,1718129459959,-248.72927715,0.00021095,2]
[329136043,1718129459971,-151.0,0.00021095,2]
[329136044,1718129459981,-500.0,0.00021095,2]
[329136045,1718129459991,-500.0,0.00021095,2]
[329136046,1718129460001,-151.0,0.00021095,2]
[329136047,1718129460033,-372.908702,0.00021095,2]
[329136048,1718129460044,-151.0,0.00021095,2]
[329136049,1718129460055,-500.0,0.00021095,2]
[329136050,1718129460065,-372.908702,0.00021095,2]
[329136051,1718129460080,-1061.162945,0.00021095,2]
[329136052,1718129460090,-1061.162945,0.00021095,2]
[329136053,1718129460101,-500.0,0.00021095,2]
[329136054,1718129460112,-500.0,0.00021095,2]
[329136055,1718129460122,-500.0,0.00021095,2]
[329136056,1718129460132,-500.0,0.00021095,2]
[329136057,1718129460143,-151.199888,0.00021095,2]
[329136058,1718129460157,-504.88,0.00021095,2]
[329136059,1718129460168,-453.63,0.00021095,2]
[329136060,1718129460178,-3312.86,0.00021095,2]
[329136061,1718129460188,-151.0,0.00021095,2]
[329136062,1718129460199,-410.693604,0.00021095,2]
[329136063,1718129460209,-410.693604,0.00021095,2]
[329136064,1718129460219,-500.0,0.00021095,2]
[329136065,1718129460229,-729.32,0.00021095,2]
[329136066,1718129460241,-500.0,0.00021095,2]
[329136067,1718129460252,-151.0,0.00021095,2]
[329136068,1718129460262,-1880.78,0.00021095,2]
[329136069,1718129460272,-827.454646,0.00021095,2]
[329136070,1718129460283,-827.454646,0.00021095,2]
[329136071,1718129460293,-541.91,0.00021095,2]
[329136072,1718129460303,-2224.7,0.00021095,2]
[329136073,1718129460312,-259.201572,0.00021095,2]
[329136074,1718129460326,-1365.05,0.00021095,2]
[329136075,1718129460336,-259.201572,0.00021095,2]
[329136076,1718129460347,-151.0,0.00021095,2]
[329136077,1718129460357,-890.22,0.00021095,2]
[329136078,1718129460367,-151.0,0.00021095,2]
[329136079,1718129460377,-500.0,0.00021095,2]
[329136080,1718129460387,-500.0,0.00021095,2]
[329136081,1718129460397,-1480.11549,0.00021095,2]
[329136082,1718129460407,-725.79,0.00021095,2]
[329136083,1718129460418,-524.18,0.00021095,2]
[329136084,1718129460428,-1480.11549,0.00021095,2]
[329136085,1718129460438,-500.0,0.00021095,2]
[329136086,1718129460448,-389.020147,0.00021095,2]
[329136087,1718129460459,-389.020147,0.00021095,2]
[329136088,1718129460470,-500.0,0.00021095,2]
[329136089,1718129460480,-9472.91,0.00021095,2]
[329136090,1718129460490,-500.0,0.00021095,2]
[329136091,1718129460500,-500.0,0.00021095,2]
[329136092,1718129460511,-3585.01,0.00021095,2]
[329136093,1718129460521,-1319.05,0.00021095,2]
[329136094,1718129460532,-500.0,0.00021095,2]
[329136095,1718129460544,-2417.93,0.00021095,2]
[329136096,1718129460554,-2129.49,0.00021095,2]
[329136097,1718129460564,-500.0,0.00021095,2]
[329136098,1718129460577,-6561.42,0.00021095,2]
[329136099,1718129460587,-500.0,0.00021095,2]
[329136100,1718129460596,-529.9,0.00021095,2]
[329136101,1718129460606,-500.0,0.00021095,2]
[329136102,1718129460617,-500.0,0.00021095,2]
[329136103,1718129460629,-500.0,0.00021095,2]
[329136104,1718129460639,-3371.3,0.00021095,2]
[329136105,1718129460651,-500.0,0.00021095,2]
[329136106,1718129460662,-500.0,0.00021095,2]
[329136107,1718129460673,-500.0,0.00021095,2]
[329136108,1718129460683,-806.16,0.00021095,2]
[329136109,1718129460693,-1241.29,0.00021095,2]
[329136110,1718129460703,-500.0,0.00021095,2]
[329136111,1718129460714,-420.61033652,0.00021247,2]
[329136112,1718129460724,-3596.87159656,0.00021316,2]
[329136113,1718129460734,-8878.83149267,0.00021316,2]
[329136114,1718129460744,-16015.48583057,0.00021319,2]
[329136115,1718129460755,-1317.0312521,0.00021319,2]
[329136116,1718129460765,-15872.11298402,0.00021322,2]
[329136117,1718129460776,-16015.48583057,0.00021327,2]
[329136118,1718129460786,-8878.83149267,0.00021332,2]
[329136119,1718129460796,-8878.83149267,0.00021332,2]
[329136120,1718129460806,-1317.0312521,0.00021336,2]
[329136121,1718129460820,-20923.96229318,0.00021336,2]
[329136122,1718129460830,-20923.96229318,0.00021344,2]
[329136123,1718129460840,-8878.83149267,0.00021347,2]
[329136124,1718129460850,-16015.48583057,0.00021347,2]
[329136125,1718129460860,-16015.48583057,0.00021349,2]
[329136126,1718129460870,-908.1,0.00021351,2]
[329136127,1718129460879,-15872.11298402,0.00021351,2]
[329136128,1718129460889,-1317.0312521,0.00021353,2]
[329136129,1718129460899,-6025.60058451,0.00021354,2]
[329136130,1718129460909,-8878.83149267,0.00021354,2]
[329136131,1718129460920,-6025.60058451,0.00021357,2]
[329136132,1718129460930,-6025.60058451,0.00021363,2]
[329136133,1718129460940,-3596.87159656,0.00021364,2]
[329136134,1718129460951,-20923.96229318,0.00021364,2]
[329136135,1718129460961,-20923.96229318,0.00021364,2]
[329136136,1718129460972,-16015.48583057,0.00021365,2]
[329136137,1718129460982,-3596.87159656,0.00021365,2]
[329136138,1718129460992,-1317.0312521,0.00021366,2]
[329136139,1718129461002,-288.70369471,0.00021369,2]
[329136140,1718129461029,-517.84,0.00021369,2]
[329136141,1718129461048,-151.0,0.00021369,2]
[329136142,1718129461058,-500.0,0.00021369,2]
[329136143,1718129461068,-434.55152177,0.00021369,2]
[329136144,1718129461079,-151.0,0.00021369,2]
[329136145,1718129461089,-372.908702,0.00021369,2]
[329136146,1718129461099,-500.0,0.00021369,2]
[329136147,1718129461109,-372.908702,0.00021369,2]
[329136148,1718129461119,-1061.162945,0.00021369,2]
[329136149,1718129461130,-1061.162945,0.00021369,2]
[329136150,1718129461140,-500.0,0.00021369,2]
[329136151,1718129461152,-500.0,0.00021369,2]
[329136152,1718129461165,-500.0,0.00021369,2]
[329136153,1718129461175,-500.0,0.00021369,2]
[329136154,1718129461185,-504.88,0.00021369,2]
[329136155,1718129461196,-453.63,0.00021369,2]
[329136156,1718129461206,-3312.86,0.00021369,2]
[329136157,1718129461216,-500.0,0.00021369,2]
[329136158,1718129461226,-729.32,0.00021369,2]
[329136159,1718129461237,-237.84203,0.00021369,2]
[329136160,1718129461248,-1864.825539,0.00021369,2]
[329136161,1718129461257,-1864.825539,0.00021369,2]
[329136162,1718129461267,-500.0,0.00021369,2]
[329136163,1718129461277,-1880.78,0.00021369,2]
[329136164,1718129461287,-541.91,0.00021369,2]
[329136165,1718129461296,-2224.7,0.00021369,2]
[329136166,1718129461308,-1365.05,0.00021369,2]
[329136167,1718129461317,-890.22,0.00021369,2]
[329136168,1718129461328,-500.0,0.00021369,2]
[329136169,1718129461338,-500.0,0.00021369,2]
[329136170,1718129461347,-725.79,0.00021369,2]
[329136171,1718129461357,-524.18,0.00021369,2]
[329136172,1718129461367,-500.0,0.00021369,2]
[329136173,1718129461377,-500.0,0.00021369,2]
[329136174,1718129461387,-9472.91,0.00021369,2]
[329136175,1718129461398,-500.0,0.00021369,2]
[329136176,1718129461408,-3585.01,0.00021369,2]
[329136177,1718129461418,-1319.05,0.00021369,2]
[329136178,1718129461428,-2417.93,0.00021369,2]
[329136179,1718129461439,-500.0,0.00021369,2]
[329136180,1718129461449,-879.40949215,0.00021369,2]
[329136181,1718129461537,-1250.08050785,0.00021369,2]
[329136182,1718129461548,-500.0,0.00021369,2]
[329136183,1718129461559,-6561.42,0.00021369,2]
[329136184,1718129461570,-500.0,0.00021369,2]
[329136185,1718129461582,-529.9,0.00021369,2]
[329136186,1718129461592,-500.0,0.00021369,2]
[329136187,1718129461603,-500.0,0.00021369,2]
[329136188,1718129461613,-743.936743,0.00021369,2]
[329136189,1718129461624,-500.0,0.00021369,2]
[329136190,1718129461634,-743.936743,0.00021369,2]
[329136191,1718129461645,-151.0,0.00021369,2]
[329136192,1718129461655,-3371.3,0.00021369,2]
[329136193,1718129461665,-500.0,0.00021369,2]
[329136194,1718129461674,-151.0,0.00021369,2]
[329136195,1718129461685,-151.0,0.00021369,2]
[329136196,1718129461695,-151.0,0.00021369,2]
[329136197,1718129461705,-1068.316572,0.00021369,2]
[329136198,1718129461715,-151.0,0.00021369,2]
[329136199,1718129461725,-1068.316572,0.00021369,2]
[329136200,1718129461735,-500.0,0.00021369,2]
[329136201,1718129461746,-500.0,0.00021369,2]
[329136202,1718129461755,-806.16,0.00021369,2]
[329136203,1718129461765,-1241.29,0.00021369,2]
[329136204,1718129461775,-500.0,0.00021369,2]
[329136205,1718129461785,-676.178389,0.00021369,2]
[329136206,1718129461795,-3596.87159656,0.0002137,2]
[329136207,1718129461806,-3596.87159656,0.00021374,2]
[329136208,1718129461817,-20923.96229318,0.00021384,2]
[329136209,1718129461830,-6025.60058451,0.00021384,2]
[329136210,1718129461841,-15872.11298402,0.00021385,2]
[329136211,1718129461851,-1317.0312521,0.00021386,2]
[329136212,1718129461861,-5361.68417867,0.00021387,2]
[329136213,1718129461878,-620.33566468,0.00021387,2]
[329136214,1718129461891,-1409.59,0.00021387,2]
[329136215,1718129461903,-1308.83844899,0.00021387,2]
[329136252,1718130282737,331.79,0.0001,10]
[329136364,1718130633593,-1877.1524641,0.00017603,2]
[329136365,1718130633607,-258.754605,0.00017604,2]
[329136366,1718130633618,-4049.32027632,0.00017697,2]
[329136368,1718130633629,-513.87265458,0.000179,2]
[329136369,1718130633686,-3039.43631564,0.000179,2]
[329136370,1718130633706,-155.01550155,0.00017995,2]
[329136371,1718130633717,-14847.72929151,0.00017996,2]
[329136372,1718130633729,-457.512,0.00017996,2]
[329136466,1718130638997,-9594.75870849,0.00017996,2]
[329136468,1718130639008,-632.90357925,0.00018,2]
[329136470,1718130639019,-563.10533913,0.000189,2]
[329136472,1718130639029,-1000.0,0.00019,2]
[329136474,1718130639040,-151.54773924,0.00019078,2]
[329136476,1718130639051,-1163.50242283,0.00019156,2]
[329136478,1718130639064,-139.18306133,0.00019156,2]
[329136480,1718130639075,-475.16,0.00019168,3]
[329136482,1718130639088,-2036.10483651,0.00019175,2]
[329136484,1718130639102,-945.74878612,0.00019175,2]
[329136486,1718130639113,-515.43295454,0.00019175,2]
[329136488,1718130639124,-14.67386739,0.00019175,2]
[329136490,1718130639138,-247.24592904,0.00019175,2]
[329136492,1718130639149,-757.70104549,0.00019175,2]
[329136496,1718130639184,-3652.7822478,0.00019175,2]
[329136498,1718130639196,-285.76830085,0.00019175,2]